Cogmind - Beta 13 @@@ ROGUE MODE // 2024.04.06 @ 20:46:22 Player: Aeon PSR Result: Destroyed by D-53 Grenadier with Mini Grenade Launcher Performance ------------- Evolutions (1) 500 Regions Visited (3) 600 Robots Destroyed (16) 80 Value Destroyed (405) 405 Prototype IDs (2) 40 Alien Tech Used (0) 0 Bonus (0) 0 TOTAL SCORE: 1625 Bonus ------- None Cogmind --------- Core Integrity 0/400 Matter 285/300 Energy 91/100 System Corruption 0% Temperature Cool (0) Movement Walking (190) Ox1 Location -9/Mines Parts ------- > --- POWER (1) -------- (None) > --- PROPULSION (2) --- Aluminum Leg > --- UTILITY (4) ------ Large Storage Unit Targeting Computer Targeting Computer > --- WEAPON (2) ------- (None) > --- INVENTORY (15) --- Ion Engine Heat Sink Targeting Computer Targeting Computer Peak State ------------ > --- POWER ------------ Improved Ion Engine > --- PROPULSION ------- Compact Wheel Compact Wheel > --- UTILITY ---------- Large Storage Unit Targeting Computer Targeting Computer Light Armor Plating > --- WEAPON ----------- Assault Rifle Rocket Launcher > --- INVENTORY -------- Ion Engine Aluminum Leg Aluminum Leg Heat Sink Targeting Computer Targeting Computer Targeting Computer Beam Cannon [Rating: 11] Favorites ----------- Power Improved Ion Engine Engine Improved Ion Engine Power Core Light Nuclear Core Propulsion Compact Wheel Leg Aluminum Leg Wheel Compact Wheel Flight Unit Flight Unit Utility Targeting Computer Storage Small Storage Unit Processor Targeting Computer Protection Backup Plating I Weapon Beam Cannon Energy Cannon Beam Cannon Ballistic Gun Light Assault Rifle Launcher Rocket Launcher Build | -11 -10 -9 -9 ------- Run | Yrd Mat Mat Min Slots Evolved 2 | . . 2 . Power . | . . . . Propulsion . | . . . . Utility 2 | . . 2 . Weapon . | . . . . Parts Attached 26 | 5 2 6 13 Power 4 | 1 1 1 1 Engine 3 | 1 1 1 . Core 1 | . . . 1 Reactor . | . . . . Propulsion 8 | 2 . . 6 Treads . | . . . . Leg 2 | . . . 2 Wheel 4 | 2 . . 2 Hover . | . . . . Flight 2 | . . . 2 Utility 6 | 1 . 4 1 Device . | . . . . Storage 2 | 1 . 1 . Processor 3 | . . 2 1 Hackware . | . . . . Protection 1 | . . 1 . Artifact . | . . . . Weapon 8 | 1 1 1 5 Energy Gun . | . . . . Energy Cannon 2 | . 1 . 1 Ballistic Gun 5 | 1 . 1 3 Ballistic Cannon . | . . . . Launcher 1 | . . . 1 Special Weapon . | . . . . Impact Weapon . | . . . . Slashing Weapon . | . . . . Piercing Weapon . | . . . . Special Melee Weapon . | . . . . Unidentified Prototypes . | . . . . Parts Lost 10 | . . . 10 Power 1 | . . . 1 Propulsion 3 | . . . 3 Utility 2 | . . . 2 Weapon 4 | . . . 4 Highest Loss Streak 7 | . . . 7 To Critical Strikes . | . . . . Average Slot Usage (%) 94 | . 93 99 90 Engine 10 | . 14 11 8 Wheel 22 | . 28 22 20 Storage 11 | . 14 11 11 Processor 18 | . . 22 27 Protection 7 | . 9 10 1 Energy Cannon 9 | . 12 11 4 Ballistic Gun 11 | . 14 10 10 Launcher 1 | . . . 3 Naked Turns . | . . . . Heaviest Build 36 | 9 15 35 36 Greatest Support 32 | 32 32 32 32 Greatest Overweight (x) 6 | . . 1 6 Average Overweight (x) . | . . . . Largest Inventory Capacity 15 | 8 8 15 15 Average Capacity 11 | 6 8 10 15 Most Carried 8 | 3 8 8 8 Average Carried 5 | 2 4 6 6 Final Capacity 15 | 8 8 15 15 Final Carried 8 | 3 8 7 4 Class Distribution -------------------- 100% | Mutant Dominant Class ---------------- Mutant | -10/Materials Mutant | -9/Materials Mutant | -9/Mines Resources | -11 -10 -9 -9 ----------- Run | Yrd Mat Mat Min Matter Collected 502 | 193 79 87 143 Remotely . | . . . . Salvage Created 472 | . 79 112 281 Parts 38 | . 6 11 21 Haulers Intercepted . | . . . . Recyclers Shooed . | . . . . Parts Field Recycled . | . . . . Retrieved Matter . | . . . . Parts Self-Destructed . | . . . . Prevented . | . . . . Kills | -11 -10 -9 -9 ------- Run | Yrd Mat Mat Min Combat Hostiles Destroyed 17 | . 2 4 11 Guns 8 | . 1 2 5 Cannons 7 | . 1 2 4 AOE 2 | . . . 2 Classes Destroyed 6 | . 1 3 2 Watcher 1 | . . 1 . Swarmer 7 | . . 3 4 Grunt 6 | . 2 . 4 Duelist 1 | . . . 1 Sentry 1 | . . 1 . Assembled 2 | . . . 2 Best Kill Streak 4 | . 2 4 4 Combat Bots Only 4 | . 2 4 4 Max Kills in Single Turn 2 | . 1 1 2 Gunslinging . | . . . . Exploded 2 | . . . 2 Melee . | . . . . Uniques/NPCs Destroyed . | . . . . Combat | -11 -10 -9 -9 -------- Run | Yrd Mat Mat Min Hostile Shots Fired 92 | . 8 21 63 Missed 20 | . . 7 13 Damage Taken 1426 | . 91 143 1192 Core 433 | . 22 22 389 Absorbed by Shields . | . . . . Core Remaining (%) 95 | 100 91 . . Volleys Fired 46 | . 6 11 29 Largest 2 | . 2 2 2 Hottest 80 | . 80 80 80 Shots Fired 81 | . 12 22 47 Gun 52 | . 6 11 35 Cannon 28 | . 6 11 11 Launcher 1 | . . . 1 Special . | . . . . Kinetic 52 | . 6 11 35 Thermal 28 | . 6 11 11 Explosive 1 | . . . 1 Electromagnetic . | . . . . Robot Hit Streak 19 | . 2 4 19 Robot Miss Streak 5 | . 1 4 5 Penetration Max . | . . . . Secondary Targets 1 | . . . 1 Max Gunslinging Chain 1 | . . . 1 Shots Hit Robots 57 | . 7 10 40 Core Hits 34 | . 3 8 23 Critical Kills . | . . . . Critical Parts Destroyed . | . . . . Critical Strikes . | . . . . Melee Attacks . | . . . . Impact . | . . . . Slashing . | . . . . Piercing . | . . . . Sneak Attacks . | . . . . Combat Hostiles . | . . . . Follow-up Attacks . | . . . . Damage Inflicted 728 | . 86 152 490 Guns 378 | . 35 80 263 Cannons 282 | . 51 72 159 Explosions 68 | . . . 68 Melee . | . . . . Ramming . | . . . . Kinetic 378 | . 35 80 263 Thermal 282 | . 51 72 159 Explosive 68 | . . . 68 Electromagnetic . | . . . . Impact . | . . . . Slashing . | . . . . Piercing . | . . . . Highest Corruption . | . . . . Average Corruption . | . . . . Corruption Purged . | . . . . Corruption Blocked . | . . . . Overload Shots . | . . . . Overflow Damage 2 | . . . 2 Projectiles 2 | . . . 2 Explosions . | . . . . Melee . | . . . . Knockbacks . | . . . . Impact . | . . . . Kinetic . | . . . . Secondary . | . . . . Self-Inflicted Damage 12 | . . . 12 Shots 1 | . . . 1 Rammed . | . . . . Targets Rammed . | . . . . Kicked . | . . . . Crushed . | . . . . Highest Temperature 224 | . 224 105 80 Average Temperature 48 | . 109 39 22 Received Heat Transfer 192 | . 48 45 99 Siege Activations . | . . . . Robots Corrupted . | . . . . Combat Hostiles . | . . . . Parts Fried . | . . . . Impact Corruptions . | . . . . Robots Melted . | . . . . Combat Hostiles . | . . . . Parts Melted 2 | . . 1 1 Heat Transferred 592 | . 111 148 333 Parts Sabotaged . | . . . . Parts Stolen . | . . . . Parts Stripped . | . . . . Power Chain Reactions . | . . . . Alert | -11 -10 -9 -9 ------- Run | Yrd Mat Mat Min Peak Influence 276 | . 67 180 276 Initial 70 | . . 27 70 Average 104 | . 25 107 188 Maximum Alert Level 1 | . . . 1 Low Security (%) 83 | 100 100 100 45 Level 1 16 | . . . 54 Level 2 . | . . . . Level 3 . | . . . . Level 4 . | . . . . Level 5 . | . . . . High Security . | . . . . Max Security . | . . . . Squads Dispatched 1 | . . 1 . Investigation 1 | . . 1 . Extermination . | . . . . Reinforcement . | . . . . Assault . | . . . . Garrison . | . . . . Intercept . | . . . . Searches Triggered . | . . . . Construction Impeded . | . . . . Haulers Reinforced . | . . . . Active Scanning Responses . | . . . . Cargo Convoy Interrupts . | . . . . Stealth | -11 -10 -9 -9 --------- Run | Yrd Mat Mat Min Distress Signals 3 | . . 3 . Communications Jammed . | . . . . Distress Signals . | . . . . Times Spotted 37 | . 3 8 26 Peak Tracking Total 7 | . 2 3 7 Tactical Retreats 1 | . . . 1 Traps | -11 -10 -9 -9 ------- Run | Yrd Mat Mat Min Traps Triggered 1 | . . 1 . Indirectly . | . . . . Trap Hack Attempts . | . . . . Triggered . | . . . . Disarmed . | . . . . Reprogrammed . | . . . . Reused . | . . . . Traps Extracted . | . . . . Installed . | . . . . Triggered . | . . . . Machines | -11 -10 -9 -9 ---------- Run | Yrd Mat Mat Min Machines Disabled 1 | . . 1 . Max in Single Turn 1 | . . 1 . Machines Repaired . | . . . . Machines Dismantled . | . . . . Machines Sabotaged . | . . . . Overloaded Fab Kills . | . . . . Hacking | -11 -10 -9 -9 --------- Run | Yrd Mat Mat Min Machines Accessed 6 | . 4 2 . Terminals 4 | . 3 1 . Fabricators . | . . . . Repair Stations 1 | . 1 . . Recycling Units 1 | . . 1 . Scanalyzers . | . . . . Garrison Access . | . . . . Total Hacks 15 | . 8 7 . Successful 9 | . 5 4 . Failed 6 | . 3 3 . Catastrophic . | . . . . Database Lockouts . | . . . . Manual . | . . . . Terminals 8 | . 6 2 . Fabricators . | . . . . Repair Stations 2 | . 2 . . Recycling Units 5 | . . 5 . Scanalyzers . | . . . . Garrison Access . | . . . . Terminal Hacks 5 | . 4 1 . Record 2 | . 2 . . Prototype ID Bank 1 | . . 1 . Alert Level 1 | . 1 . . Zone Layout 1 | . 1 . . Fabricator Hacks . | . . . . Repair Station Hacks 1 | . 1 . . Refit 1 | . 1 . . Recycling Unit Hacks 3 | . . 3 . Process 1 | . . 1 . Report Inventory 1 | . . 1 . Retrieve Matter 1 | . . 1 . Scanalyzer . | . . . . Garrison Access Hacks . | . . . . Unauthorized Hacks . | . . . . Terminals . | . . . . Fabricators . | . . . . Repair Stations . | . . . . Recycling Units . | . . . . Scanalyzers . | . . . . Garrison Access . | . . . . Data Cores Recovered . | . . . . Used . | . . . . Hacking Detections 3 | . 2 1 . Full Trace Events . | . . . . Feedback Events . | . . . . Feedback Blocked . | . . . . Robot Schematics Acquired . | . . . . Robots Built . | . . . . Authchips . | . . . . Time . | . . . . Total Robot Build Rating . | . . . . Part Schematics Acquired . | . . . . Parts Built . | . . . . Authchips . | . . . . Time . | . . . . Total Part Build Rating . | . . . . Parts Repaired . | . . . . Time . | . . . . Parts Recycled . | . . . . Recycled Matter 12 | . . 12 . Retrieved Matter 12 | . . 12 . Retrieved Components . | . . . . Parts Scanalyzed . | . . . . Part Schematics Acquired . | . . . . Parts Damaged . | . . . . Bothacking | -11 -10 -9 -9 ------------ Run | Yrd Mat Mat Min Used RIF Installer . | . . . . Robots Hacked . | . . . . Non-combat . | . . . . Combat . | . . . . Robot Hacks Applied . | . . . . Relay Couplers Released . | . . . . Fabnet Peak Effective % . | . . . . Robots Rewired . | . . . . Allies Hacked . | . . . . Hacks Repelled . | . . . . Allies | -11 -10 -9 -9 -------- Run | Yrd Mat Mat Min Total Allies . | . . . . Largest Group . | . . . . Highest-Rated Group . | . . . . Highest-Rated Ally . | . . . . Total Orders . | . . . . Ally Attacks . | . . . . Total Damage . | . . . . Kills . | . . . . Allies Corrupted . | . . . . Allies Melted . | . . . . Intel | -11 -10 -9 -9 ------- Run | Yrd Mat Mat Min Robot Analysis Total . | . . . . Derelict Logs Recovered 1 | . . . 1 Drone Launches . | . . . . Drone Recoveries . | . . . . Exploration | -11 -10 -9 -9 ------------- Run | Yrd Mat Mat Min Turns Passed 790 | 51 194 308 237 Spaces Moved 546 | 39 163 222 122 Core 5 | 4 . . 1 Treads . | . . . . Legs 6 | . . . 6 Wheels 535 | 35 163 222 115 Hover . | . . . . Flight . | . . . . Fastest Speed 50 | 50 100 100 100 Average Speed 104 | 94 100 105 111 Slowest Speed 350 | 100 100 115 350 Overloaded Moves . | . . . . Propulsion Burnouts . | . . . . Robots Hopped . | . . . . Cave-ins Triggered . | . . . . Exploration Rate (%) 20 | 3 33 21 25 Regions Visited 3 Branch Regions 1 Pre-discovered Areas 1 | . . . 1 Known Exits Taken . | . . . . Unknown Exits Taken 3 | 1 1 1 . Scrap Searched . | . . . . Spaces Dug . | . . . . Terrain Destroyed 11 | . . . 11 Melee . | . . . . Projectile . | . . . . AOE 11 | . . . 11 Terrain Rammed . | . . . . Walls Destroyed . | . . . . Machines Disabled . | . . . . Actions | -11 -10 -9 -9 --------- Run | Yrd Mat Mat Min Total 689 | 52 183 273 181 Wait 38 | 1 3 28 6 Move 543 | 38 162 221 122 Hop . | . . . . Pick Up 27 | 8 8 4 7 Fast Attach . | . . . . Attach 16 | 5 1 4 6 Detach . | . . . . Swap 10 | . 1 2 7 Drop 9 | . 2 3 4 Fire 46 | . 6 11 29 Melee . | . . . . Ram . | . . . . Kick . | . . . . Crush . | . . . . Escape Stasis . | . . . . Rewire . | . . . . Trap . | . . . . Miscellaneous . | . . . . Route ------- -11/Scrapyard -10/Materials -9/Materials -9/Mines History --------- Turn | Location | Event 2 | -11/Scrapyard | Met Revision 17 17 | -11/Scrapyard | Discovered new exit (range 15) 52 | -11/Scrapyard | Entered Materials 200 | -10/Materials | Discovered new exit (range 8) 246 | -10/Materials | Entered another Materials area 246 | -9/Materials | Evolved 2 slots: Utility x2 303 | -9/Materials | Build established: Mutant 547 | -9/Materials | Discovered new exit (range 7) 554 | -9/Materials | Entered Mines 561 | -9/Mines | Received a Rocket Launcher from a helpful Derelict 562 | -9/Mines | Learned location of Zion (-7) 745 | -9/Mines | Assembled infested the area 750 | -9/Mines | Assisted by a Guerilla fighting off Assembled 780 | -9/Mines | Core integrity fell below 50% 786 | -9/Mines | Core integrity fell below 20% 791 | -9/Mines | Destroyed by D-53 Grenadier with Mini Grenade Launcher Last Messages --------------- Acquired 7 matter. as-50428 destroyed. Lgt. Assault Rifle destroyed. Com. Wheel destroyed. Lgt. Assault Rifle destroyed. The unstable cave ceiling collapses. as-22927 destroyed. U-05 Engineer lays Concrete. The unstable cave ceiling collapses. U-05 Engineer builds a Wall. K-01 Serf collects debris. as-04712 destroyed. as-07939 destroyed. The unstable cave ceiling collapses. as-96100 destroyed. as-09588 destroyed. K-01 Serf collects debris. The unstable cave ceiling collapses. Aluminum Leg destroyed. The unstable cave ceiling collapses. Map ----- +----------------------------------------------------+ | ?????????????????????????????????????????????????? | | ?????????????????????????????????????????????????? | | ?????????????????????????????????????????????????? | | ?????????????????????????????????????????????????? | | ?????????????????????????????????????????????????? | | ?????????????????????????????????????????????????? | | ?????????????????????????????????????????????????? | | ??????????????????????????????!??????????????????? | | ??????????????????????????????*??????????????????? | | ?????????????????????????????# ?????????????????? | | ???????????????????????????## "??????????????????? | | ??????????????????????????## ??????????????????? | | ??????????????????????????# ??????????????????? | | ??????????????????????????# ??????????????????? | | ??????????????????????????# #??????????????????? | | ???????????#?????????????## ###????????????????? | | ?????????? #????????????? ######???????????? | | ?????#### #????????????## #???????????? | | ?????# #????????????? # #%#???????????? | | #????# #####???????????### %##??????????? | | ????# #??????????????## # #??????????? | | ##### #??????????????# [ ##?????????? | | ### ###????????????# # ## #?????????? | | ##???????????# ###?????????? | | *=*![ #???????????# ##????????? | | #%[= #???????????## @ #????????? | | # % ### ##????????????# d #????????? | | ## ##??###????????????# # = #????????? | | ?#%###??????????????? ## % ##????????? | | ?#! #??????????????##### ### ####?????????? | | ?### #???########???????# ## d k #????????????? | | ???# ##### #####???# ## ##????????????? | | ???# #???# ### # ????????????? | | ???#### ## #???#=###%# # ???????????? | | ??????## ## ### #???# #?# ### ???????????? | | ???????##########?# #???#*### #?? ???????????? | | ??????????????????# #??## =*# #??# ????????????? | | ??????????????????# #??#] ==%*##??#??????????????? | | ??????????????????# #??# ==* #?????????????????? | | ??????????????????# #?##% #?????????????????? | | ??????????????????# ### ##?????????????????? | | ??????????????????# ##??????????????????? | | ??????????????????##### #???????????????????? | | ??????????????????????## #???????????????????? | | ???????????????????????### #??????????????????? | | ?????????????????????????### #?????????????????? | | ???????????????????????????## #????????????????? | | ?????????????????????????????# ???????????????? | | ?????????????????????????????? #?????????????? | | ??????????????????????????????# ####?????????????? | +----------------------------------------------------+ Best States ------------- Heat Dissipation 28 Energy Generation 14 Energy Capacity 265 Matter Stores 300 Matter Capacity 300 Sight Range 16 Terrain Scan Density 10 Armor Coverage 150 Evasion (%) 45 Targeting Accuracy 15 Item Schematics ----------------- None Robot Schematics ------------------ None Fabricated ------------ Nothing Alien Tech Used ----------------- None Achievements -------------- None Challenges ------------ None Game ------ Seed XenonGhostCore Manual? 0 Play Time 00:19:51 Cumulative 3.4 hours Start 2024.04.06 @ 20:21:06 End 2024.04.06 @ 20:46:22 Sessions 1 Manual Loads 0 Difficulty Rogue Special Mode None Game No. 5 Rogue 5 Adventurer 0 Explorer 0 Win Type - Total 0 Types 0/0/0/0/0/0/0/0/0 Lore% 4 Gallery% 7 Achievement% 7 Wizard Run 0 Options --------- Layout 1 ASCII 0 Keyboard 0 Movement Mouse Keybinds 0 Fullscreen 2 Font 24/Crisp Map View 50x35 Zoom Use 0% Tactical HUD 0 Map Filters NONE Filters NONE Steam 1 RUN: c22319f9-bf63-4bc4-a562-cab9f80daec8